fUSD/lending_fUSD_20241219
["ID","MTS","AMOUNT","RATE_DAILY","PERIOD"]
[346017493,1734625854173,-500.0,0.00024592,4]
[346017494,1734625854183,-468.65150119,0.00024592,4]
[346017495,1734625854192,-591.96,0.00024592,4]
[346017496,1734625854202,-1109.27,0.00024592,4]
[346017497,1734625854211,-500.0,0.00024592,4]
[346017498,1734625854221,-1566.01,0.00024592,4]
[346017499,1734625854231,-500.0,0.00024592,4]
[346017500,1734625854241,-878.44,0.00024592,4]
[346017501,1734625854250,-500.0,0.00024592,4]
[346017502,1734625854260,-729.12,0.00024592,4]
[346017503,1734625854273,-500.0,0.00024592,4]
[346017504,1734625854282,-536.37,0.00024592,4]
[346017505,1734625854291,-500.0,0.00024592,4]
[346017506,1734625854302,-500.0,0.00024592,4]
[346017507,1734625854312,-500.0,0.00024592,4]
[346017508,1734625854321,-412.47345252,0.00024592,4]
[346017509,1734625854331,-500.0,0.00024592,4]
[346017510,1734625854341,-500.0,0.00024592,4]
[346017511,1734625854350,-500.0,0.00024592,4]
[346017512,1734625854359,-500.0,0.00024592,4]
[346017513,1734625854369,-500.0,0.00024592,4]
[346017514,1734625854378,-500.0,0.00024592,4]
[346017515,1734625854388,-500.0,0.00024592,4]
[346017516,1734625854397,-614.31,0.00024592,4]
[346017517,1734625854407,-500.0,0.00024592,4]
[346017518,1734625854417,-500.0,0.00024592,4]
[346017519,1734625854427,-500.0,0.00024592,4]
[346017520,1734625854437,-500.0,0.00024592,4]
[346017521,1734625854446,-625.33,0.00024592,4]
[346017522,1734625854456,-500.0,0.00024592,4]
[346017523,1734625854465,-500.0,0.00024592,4]
[346017524,1734625854475,-500.0,0.00024592,4]
[346017525,1734625854485,-500.0,0.00024592,4]
[346017526,1734625854495,-500.0,0.00024592,4]
[346017527,1734625854505,-500.0,0.00024592,4]
[346017528,1734625854515,-500.0,0.00024592,4]
[346017529,1734625854528,-500.0,0.00024592,4]
[346017530,1734625854537,-500.0,0.00024592,4]
[346017531,1734625854547,-288.35,0.00024592,4]
[346017532,1734625854557,-500.0,0.00024592,4]
[346017533,1734625854567,-1131.96,0.00024592,4]
[346017534,1734625854577,-500.0,0.00024592,4]
[346017535,1734625854591,-1260.73,0.00024592,4]
[346017536,1734625854601,-500.0,0.00024592,4]
[346017537,1734625854750,-1318.87,0.00024592,4]
[346017538,1734625854760,-500.0,0.00024592,4]
[346017539,1734625854772,-500.0,0.00024592,4]
[346017540,1734625854782,-500.0,0.00024592,4]
[346017541,1734625854792,-500.0,0.00024593,4]
[346017542,1734625854801,-500.0,0.00024593,4]
[346017543,1734625854812,-500.0,0.00024593,4]
[346017544,1734625854822,-500.0,0.00024593,4]
[346017545,1734625854831,-500.0,0.00024593,4]
[346017546,1734625854841,-500.0,0.00024593,4]
[346017547,1734625854850,-500.0,0.00024593,4]
[346017548,1734625854860,-500.0,0.00024593,4]
[346017549,1734625854870,-500.0,0.00024593,4]
[346017550,1734625854879,-500.0,0.00024593,4]
[346017551,1734625854888,-500.0,0.00024593,4]
[346017552,1734625854898,-500.0,0.00024593,4]
[346017553,1734625854907,-500.0,0.00024593,4]
[346017554,1734625854916,-500.0,0.00024593,4]
[346017555,1734625854925,-500.0,0.00024593,4]
[346017556,1734625854935,-500.0,0.00024593,4]
[346017557,1734625854945,-500.0,0.00024593,4]
[346017558,1734625854955,-500.0,0.00024593,4]
[346017559,1734625854965,-500.0,0.00024593,4]
[346017560,1734625854975,-500.0,0.00024593,4]
[346017561,1734625854985,-500.0,0.00024593,4]
[346017562,1734625854994,-500.0,0.00024593,4]
[346017563,1734625855004,-732.7,0.00024593,4]
[346017564,1734625855013,-500.0,0.00024593,4]
[346017565,1734625855025,-500.0,0.00024593,4]
[346017566,1734625855035,-500.0,0.00024593,4]
[346017567,1734625855044,-500.0,0.00024593,4]
[346017568,1734625855053,-558.82,0.00024593,4]
[346017569,1734625855062,-872.69,0.00024593,4]
[346017570,1734625855072,-500.0,0.00024593,4]
[346017571,1734625855082,-500.0,0.00024593,4]
[346017572,1734625855091,-500.0,0.00024593,4]
[346017573,1734625855101,-500.0,0.00024593,4]
[346017574,1734625855111,-654.72,0.00024593,4]
[346017575,1734625855121,-500.0,0.00024593,4]
[346017576,1734625855130,-500.0,0.00024593,4]
[346017577,1734625855139,-500.0,0.00024593,4]
[346017578,1734625855149,-500.0,0.00024593,4]
[346017579,1734625855158,-500.0,0.00024593,4]
[346017580,1734625855167,-500.0,0.00024593,4]
[346017581,1734625855177,-2143.0,0.000246,2]
[346017582,1734625855188,-200.0,0.000246,8]
[346017583,1734625855197,-188.13,0.00024615,2]
[346017584,1734625855206,-7880.61166662,0.00024625,2]
[346017585,1734625855216,-211.65973697,0.0002465,2]
[346017586,1734625855225,-15838.58054369,0.00024657,3]
[346017587,1734625855235,-150.0,0.00024658,2]
[346017588,1734625855244,-1500.0,0.00024675,2]
[346017589,1734625855254,-953.0,0.00024687,2]
[346017590,1734625855264,-5210.02041551,0.00024688,2]
[346017591,1734625855276,-200.0,0.000247,9]
[346017592,1734625855286,-197.75,0.00024736,120]
[346017593,1734625855295,-1500.0,0.00024737,2]
[346017594,1734625855305,-1404.0,0.0002475,2]
[346017595,1734625855315,-150.0,0.00024774,2]
[346017596,1734625855325,-211.65973697,0.00024775,2]
[346017597,1734625855334,-150.0,0.00024779,2]
[346017598,1734625855343,-150.0,0.00024779,2]
[346017599,1734625855352,-150.0,0.00024782,2]
[346017600,1734625855362,-5210.02041551,0.00024794,2]
[346017601,1734625855371,-418.56669568,0.00024799,4]
[346017602,1734625855381,-269.82502881,0.000248,2]
[346017603,1734625855390,-2148.6259223,0.000248,120]
[346017604,1734625855400,-6922.09844,0.000248,2]
[346017605,1734625855410,-6580.773923,0.000248,2]
[346017606,1734625855419,-500.0,0.000248,2]
[346017607,1734625855428,-800.0,0.000248,9]
[346017608,1734625855437,-500.0,0.00024821,4]
[346017609,1734625855446,-500.0,0.00024821,4]
[346017610,1734625855456,-500.0,0.00024821,4]
[346017611,1734625855465,-394.15,0.00024821,4]
[346017612,1734625855474,-150.0,0.00024826,2]
[346017613,1734625855484,-150.0,0.00024843,2]
[346017614,1734625855493,-500.0,0.00024865,4]
[346017615,1734625855502,-592.10482844,0.00024865,4]
[346017616,1734625855511,-500.0,0.00024865,4]
[346017617,1734625855524,-500.0,0.00024865,4]
[346017618,1734625855533,-500.0,0.00024865,4]
[346017619,1734625855542,-500.0,0.00024865,4]
[346017620,1734625855551,-500.0,0.00024865,4]
[346017621,1734625855561,-500.0,0.00024865,4]
[346017622,1734625855570,-524.49445185,0.00024865,4]
[346017623,1734625855579,-510.62,0.00024865,4]
[346017624,1734625855590,-500.0,0.00024865,4]
[346017625,1734625855599,-500.0,0.00024865,4]
[346017626,1734625855608,-500.0,0.00024865,4]
[346017627,1734625855617,-500.0,0.00024865,4]
[346017628,1734625855626,-1493.28,0.00024865,4]
[346017629,1734625855635,-604.27,0.00024865,4]
[346017630,1734625855644,-500.0,0.00024865,4]
[346017631,1734625855653,-500.0,0.00024865,4]
[346017632,1734625855663,-500.0,0.00024865,4]
[346017633,1734625855672,-500.0,0.00024865,4]
[346017634,1734625855682,-500.0,0.00024865,4]
[346017635,1734625855691,-500.0,0.00024865,4]
[346017636,1734625855700,-500.0,0.00024865,4]
[346017637,1734625855710,-559.21,0.00024865,4]
[346017638,1734625855721,-500.0,0.00024865,4]
[346017639,1734625855730,-500.0,0.00024865,4]
[346017640,1734625855739,-500.0,0.00024865,4]
[346017641,1734625855748,-500.0,0.00024865,4]
[346017642,1734625855757,-500.0,0.00024865,4]
[346017643,1734625855766,-500.0,0.00024865,4]
[346017644,1734625855779,-603.42,0.00024865,4]
[346017645,1734625855789,-500.0,0.00024865,4]
[346017646,1734625855798,-500.0,0.00024865,4]
[346017647,1734625855807,-500.0,0.00024865,4]
[346017648,1734625855816,-500.0,0.00024865,4]
[346017649,1734625855826,-838.95,0.00024865,4]
[346017650,1734625855835,-664.75,0.00024865,4]
[346017651,1734625855844,-589.82,0.00024865,4]
[346017652,1734625855853,-500.0,0.00024865,4]
[346017653,1734625855862,-500.0,0.00024865,4]
[346017654,1734625855871,-500.0,0.00024865,4]
[346017655,1734625855880,-664.42,0.00024865,4]
[346017656,1734625855889,-553.51,0.00024865,4]
[346017657,1734625855898,-558.8,0.00024865,4]
[346017658,1734625855907,-500.0,0.00024865,4]
[346017659,1734625855916,-500.0,0.00024865,4]
[346017660,1734625855925,-500.0,0.00024865,4]
[346017661,1734625855934,-403.45553364,0.00024865,4]
[346017662,1734625855943,-500.0,0.00024865,4]
[346017663,1734625855953,-500.0,0.00024865,4]
[346017664,1734625855962,-500.0,0.00024865,4]
[346017665,1734625855971,-500.0,0.00024865,4]
[346017666,1734625855980,-500.0,0.00024865,4]
[346017667,1734625855989,-500.0,0.00024865,4]
[346017668,1734625855998,-500.0,0.00024865,4]
[346017669,1734625856007,-500.0,0.00024865,4]
[346017670,1734625856016,-500.0,0.00024865,4]
[346017671,1734625856028,-502.15709954,0.00024865,4]
[346017672,1734625856036,-500.0,0.00024865,4]
[346017673,1734625856045,-500.0,0.00024865,4]
[346017674,1734625856054,-500.0,0.00024865,4]
[346017675,1734625856063,-500.0,0.00024865,4]
[346017676,1734625856072,-500.0,0.00024865,4]
[346017677,1734625856081,-500.0,0.00024865,4]
[346017678,1734625856090,-500.0,0.00024865,4]
[346017679,1734625856099,-500.0,0.00024865,4]
[346017680,1734625856108,-500.0,0.00024865,4]
[346017681,1734625856117,-500.0,0.00024865,4]
[346017682,1734625856126,-1215.56,0.00024865,4]
[346017683,1734625856135,-500.0,0.00024865,4]
[346017684,1734625856145,-500.0,0.00024865,4]
[346017685,1734625856155,-527.17,0.00024865,4]
[346017686,1734625856164,-520.17,0.00024865,4]
[346017687,1734625856173,-755.12,0.00024865,4]
[346017688,1734625856183,-500.0,0.00024865,4]
[346017689,1734625856193,-500.0,0.00024865,4]
[346017690,1734625856202,-500.0,0.00024865,4]
[346017691,1734625856211,-500.0,0.00024865,4]
[346017692,1734625856220,-765.6,0.00024865,4]
[346017693,1734625856230,-500.0,0.00024865,4]
[346017694,1734625856240,-500.0,0.00024865,4]
[346017695,1734625856249,-500.0,0.00024865,4]
[346017696,1734625856257,-500.0,0.00024865,4]
[346017697,1734625856267,-500.0,0.00024865,4]
[346017698,1734625856278,-500.0,0.00024865,4]
[346017699,1734625856287,-500.0,0.00024865,4]
[346017700,1734625856296,-500.0,0.00024865,4]
[346017701,1734625856306,-537.70924645,0.00024865,4]
[346017702,1734625856315,-500.0,0.00024865,4]
[346017703,1734625856324,-500.0,0.00024865,4]
[346017704,1734625856333,-500.0,0.00024865,4]
[346017705,1734625856343,-500.0,0.00024865,4]
[346017706,1734625856352,-500.0,0.00024865,4]
[346017707,1734625856361,-500.0,0.00024865,4]
[346017708,1734625856369,-732.72,0.00024865,4]
[346017709,1734625856379,-520.83,0.00024865,4]
[346017710,1734625856387,-500.0,0.00024865,4]
[346017711,1734625856397,-500.0,0.00024865,4]
[346017712,1734625856406,-500.0,0.00024865,4]
[346017713,1734625856415,-703.2,0.00024865,4]
[346017714,1734625856424,-500.0,0.00024865,4]
[346017715,1734625856433,-500.0,0.00024865,4]
[346017716,1734625856442,-500.0,0.00024865,4]
[346017717,1734625856451,-500.0,0.00024865,4]
[346017718,1734625856460,-311.13914889,0.00024865,4]
[346017719,1734625856469,-500.0,0.00024865,4]
[346017720,1734625856479,-500.0,0.00024865,4]
[346017721,1734625856488,-500.0,0.00024865,4]
[346017722,1734625856497,-500.0,0.00024865,4]
[346017723,1734625856506,-500.0,0.00024865,4]
[346017724,1734625856515,-500.0,0.00024865,4]
[346017725,1734625856526,-500.0,0.00024865,4]
[346017726,1734625856535,-500.0,0.00024865,4]
[346017727,1734625856544,-500.0,0.00024865,4]
[346017728,1734625856553,-500.0,0.00024865,4]
[346017729,1734625856562,-500.0,0.00024865,4]
[346017730,1734625856571,-500.0,0.00024865,4]
[346017731,1734625856580,-500.0,0.00024865,4]
[346017732,1734625856591,-500.0,0.00024865,4]
[346017733,1734625856600,-500.0,0.00024865,4]
[346017734,1734625856609,-500.0,0.00024865,4]
[346017735,1734625856618,-500.0,0.00024865,4]
[346017736,1734625856627,-500.0,0.00024865,4]
[346017737,1734625856636,-500.0,0.00024865,4]
[346017738,1734625856645,-500.0,0.00024865,4]
[346017739,1734625856655,-500.0,0.00024865,4]
[346017740,1734625856664,-500.0,0.00024865,4]
[346017741,1734625856672,-195.0592901,0.00024865,4]
[346017742,1734625856682,-500.0,0.00024865,4]
[346017743,1734625856691,-500.0,0.00024865,4]
[346017744,1734625856701,-513.20120553,0.00024865,4]
[346017745,1734625856710,-500.0,0.00024865,4]
[346017746,1734625856718,-500.0,0.00024865,4]
[346017747,1734625856727,-500.0,0.00024865,4]
[346017748,1734625856737,-500.0,0.00024865,4]
[346017749,1734625856746,-500.0,0.00024865,4]
[346017750,1734625856755,-500.0,0.00024865,4]
[346017751,1734625856764,-500.0,0.00024865,4]
[346017752,1734625856775,-500.0,0.00024865,4]
[346017753,1734625856784,-500.0,0.00024865,4]
[346017754,1734625856794,-500.0,0.00024865,4]
[346017755,1734625856803,-500.0,0.00024865,4]
[346017756,1734625856813,-500.0,0.00024865,4]
[346017757,1734625856822,-500.0,0.00024865,4]
[346017758,1734625856831,-500.0,0.00024865,4]
[346017759,1734625856840,-500.0,0.00024865,4]
[346017760,1734625856849,-500.0,0.00024865,4]
[346017761,1734625856858,-276.70362545,0.00024865,4]
[346017762,1734625856870,-500.0,0.00024865,4]
[346017763,1734625856882,-500.0,0.00024865,4]
[346017764,1734625856891,-500.0,0.00024865,4]
[346017765,1734625856901,-500.0,0.00024865,4]
[346017766,1734625856910,-500.0,0.00024865,4]
[346017767,1734625856920,-500.0,0.00024865,4]
[346017768,1734625856930,-422.36627238,0.00024865,4]
[346017769,1734625856939,-500.0,0.00024865,4]
[346017770,1734625856949,-500.0,0.00024865,4]
[346017771,1734625856959,-500.0,0.00024866,4]
[346017772,1734625856969,-500.0,0.00024866,4]
[346017773,1734625856978,-500.0,0.00024866,4]
[346017774,1734625856988,-500.0,0.00024866,4]
[346017775,1734625856997,-500.0,0.00024866,4]
[346017776,1734625857007,-500.0,0.00024866,4]
[346017777,1734625857016,-500.0,0.00024866,4]
[346017778,1734625857028,-500.0,0.00024866,4]
[346017779,1734625857039,-500.0,0.00024866,4]
[346017780,1734625857048,-500.0,0.00024866,4]
[346017781,1734625857058,-500.0,0.00024866,4]
[346017782,1734625857068,-500.0,0.00024866,4]
[346017783,1734625857077,-504.5776997,0.00024866,4]
[346017784,1734625857086,-500.0,0.00024866,4]
[346017785,1734625857095,-500.0,0.00024866,4]
[346017786,1734625857105,-500.0,0.00024866,4]
[346017787,1734625857114,-500.0,0.00024866,4]
[346017788,1734625857123,-500.0,0.00024866,4]
[346017789,1734625857132,-500.0,0.00024866,4]
[346017790,1734625857142,-500.0,0.00024866,4]
[346017791,1734625857151,-500.0,0.00024866,4]
[346017792,1734625857159,-500.0,0.00024866,4]
[346017793,1734625857169,-500.0,0.00024866,4]
[346017794,1734625857178,-500.0,0.00024866,4]
[346017795,1734625857188,-500.0,0.00024866,4]
[346017796,1734625857197,-500.0,0.00024866,4]
[346017797,1734625857206,-500.0,0.00024866,4]
[346017798,1734625857215,-500.0,0.00024866,4]
[346017799,1734625857224,-500.0,0.00024866,4]
[346017800,1734625857233,-500.0,0.00024866,4]
[346017801,1734625857242,-500.0,0.00024866,4]
[346017802,1734625857250,-500.0,0.00024866,4]
[346017803,1734625857260,-500.0,0.00024866,4]
[346017804,1734625857269,-500.0,0.00024866,4]
[346017805,1734625857286,-500.0,0.00024866,4]
[346017806,1734625857296,-500.0,0.00024866,4]
[346017807,1734625857306,-500.0,0.00024866,4]
[346017808,1734625857315,-500.0,0.00024866,4]
[346017809,1734625857324,-500.0,0.00024866,4]
[346017810,1734625857333,-500.0,0.00024866,4]
[346017811,1734625857342,-500.0,0.00024866,4]
[346017812,1734625857351,-483.77540385,0.00024866,4]
[346017813,1734625857359,-500.0,0.00024866,4]
[346017814,1734625857369,-500.0,0.00024866,4]
[346017815,1734625857378,-500.0,0.00024866,4]
[346017816,1734625857387,-500.0,0.00024866,4]
[346017817,1734625857396,-500.0,0.00024866,4]
[346017818,1734625857405,-500.0,0.00024866,4]
[346017819,1734625857414,-500.0,0.00024866,4]
[346017820,1734625857423,-591.96,0.00024866,4]
[346017821,1734625857433,-1109.27,0.00024866,4]
[346017822,1734625857442,-500.0,0.00024866,4]
[346017823,1734625857452,-1566.01,0.00024866,4]
[346017824,1734625857461,-500.0,0.00024866,4]
[346017825,1734625857470,-878.44,0.00024866,4]
[346017826,1734625857479,-500.0,0.00024866,4]
[346017827,1734625857488,-729.12,0.00024866,4]
[346017828,1734625857497,-500.0,0.00024866,4]
[346017829,1734625857506,-536.37,0.00024866,4]
[346017830,1734625857515,-500.0,0.00024866,4]
[346017831,1734625857526,-500.0,0.00024866,4]
[346017832,1734625857535,-500.0,0.00024866,4]
[346017833,1734625857544,-500.0,0.00024866,4]
[346017834,1734625857553,-475.39691471,0.00024866,4]
[346017835,1734625857562,-500.0,0.00024866,4]
[346017836,1734625857572,-500.0,0.00024866,4]
[346017837,1734625857581,-500.0,0.00024866,4]
[346017838,1734625857592,-500.0,0.00024866,4]
[346017839,1734625857601,-500.0,0.00024866,4]
[346017840,1734625857610,-614.31,0.00024866,4]
[346017841,1734625857620,-500.0,0.00024866,4]
[346017842,1734625857629,-500.0,0.00024866,4]
[346017843,1734625857640,-500.0,0.00024866,4]
[346017844,1734625857650,-500.0,0.00024866,4]
[346017845,1734625857659,-500.0,0.00024866,4]
[346017846,1734625857669,-625.33,0.00024866,4]
[346017847,1734625857679,-500.0,0.00024866,4]
[346017848,1734625857688,-500.0,0.00024866,4]
[346017849,1734625857697,-500.0,0.00024866,4]
[346017850,1734625857706,-500.0,0.00024866,4]
[346017851,1734625857715,-500.0,0.00024866,4]
[346017852,1734625857724,-500.0,0.00024866,4]
[346017853,1734625857734,-500.0,0.00024866,4]
[346017854,1734625857743,-500.0,0.00024866,4]
[346017855,1734625857754,-500.0,0.00024866,4]
[346017856,1734625857763,-1131.96,0.00024866,4]
[346017857,1734625857772,-500.0,0.00024866,4]
[346017858,1734625857781,-1260.73,0.00024866,4]
[346017859,1734625857790,-500.0,0.00024866,4]
[346017860,1734625857799,-1318.87,0.00024866,4]
[346017861,1734625857808,-500.0,0.00024866,4]
[346017862,1734625857817,-510.11311772,0.00024866,4]
[346017863,1734625857827,-500.0,0.00024866,4]
[346017864,1734625857837,-500.0,0.00024867,4]
[346017865,1734625857846,-500.0,0.00024867,4]
[346017866,1734625857855,-500.0,0.00024867,4]
[346017867,1734625857864,-500.0,0.00024867,4]
[346017868,1734625858007,-500.0,0.00024867,4]
[346017869,1734625858017,-500.0,0.00024867,4]
[346017870,1734625858028,-500.0,0.00024867,4]
[346017871,1734625858038,-500.0,0.00024867,4]
[346017872,1734625858048,-500.0,0.00024867,4]
[346017873,1734625858058,-500.0,0.00024867,4]
[346017874,1734625858067,-500.0,0.00024867,4]
[346017875,1734625858077,-500.0,0.00024867,4]
[346017876,1734625858087,-505.14474109,0.00024867,4]
[346017877,1734625858098,-500.0,0.00024867,4]
[346017878,1734625858107,-500.0,0.00024867,4]
[346017879,1734625858117,-500.0,0.00024867,4]
[346017880,1734625858127,-500.0,0.00024867,4]
[346017881,1734625858137,-500.0,0.00024867,4]
[346017882,1734625858146,-500.0,0.00024867,4]
[346017883,1734625858156,-500.0,0.00024867,4]
[346017884,1734625858165,-500.0,0.00024867,4]
[346017885,1734625858176,-732.7,0.00024867,4]
[346017886,1734625858185,-500.0,0.00024867,4]
[346017887,1734625858194,-500.0,0.00024867,4]
[346017888,1734625858204,-500.0,0.00024867,4]
[346017889,1734625858213,-500.0,0.00024867,4]
[346017890,1734625858222,-558.82,0.00024867,4]
[346017891,1734625858232,-872.69,0.00024867,4]
[346017892,1734625858241,-500.0,0.00024867,4]
[346017893,1734625858250,-500.0,0.00024867,4]
[346017894,1734625858260,-500.0,0.00024867,4]
[346017895,1734625858269,-500.0,0.00024867,4]
[346017896,1734625858279,-654.72,0.00024867,4]
[346017897,1734625858289,-500.0,0.00024867,4]
[346017898,1734625858298,-500.0,0.00024867,4]
[346017899,1734625858308,-500.0,0.00024867,4]
[346017900,1734625858317,-500.0,0.00024867,4]
[346017901,1734625858327,-500.0,0.00024867,4]
[346017902,1734625858336,-500.0,0.00024867,4]
[346017903,1734625858345,-15868.08728549,0.0002488,2]
[346017904,1734625858354,-2521.83848097,0.00024899,2]
[346017905,1734625858364,-5800.0,0.000249,2]
[346017906,1734625858373,-1097.54,0.000249,31]
[346017907,1734625858383,-1097.54,0.000249,31]
[346017908,1734625858392,-1097.54,0.000249,31]
[346017909,1734625858402,-1097.54,0.000249,31]
[346017910,1734625858411,-1097.54,0.000249,31]
[346017911,1734625858420,-1097.54,0.000249,31]
[346017912,1734625858429,-1097.54,0.000249,31]
[346017913,1734625858439,-1097.54,0.000249,31]
[346017914,1734625858448,-1097.54,0.000249,31]
[346017915,1734625858457,-1097.54,0.000249,31]
[346017916,1734625858467,-1097.54,0.000249,31]
[346017917,1734625858476,-1097.54,0.000249,31]
[346017918,1734625858485,-1097.54,0.000249,31]
[346017919,1734625858495,-1097.54,0.000249,31]
[346017920,1734625858504,-1097.54,0.000249,31]
[346017921,1734625858514,-1097.54,0.000249,31]
[346017922,1734625858523,-211.65973697,0.000249,2]
[346017923,1734625858532,-5210.02041551,0.000249,2]
[346017924,1734625858542,-1455.40650942,0.000249,2]
[346017925,1734625858551,-173.75877718,0.000249,2]
[346017926,1734625858561,-162.71571544,0.000249,2]
[346017927,1734625858570,-162.71571543,0.000249,2]
[346017928,1734625858579,-162.71571543,0.000249,2]
[346017929,1734625858593,-150.0,0.00024921,2]
[346017930,1734625858603,-150.0,0.00024961,2]
[346017931,1734625858612,-381.8680061,0.00024973,2]
[346017932,1734625858622,-150.0,0.00024974,2]
[346017933,1734625858631,-1999.0,0.00024986,7]
[346017934,1734625858641,-1999.0,0.00024986,7]
[346017935,1734625858650,-1999.0,0.00024986,7]
[346017936,1734625858660,-1568.0,0.00024986,7]
[346017937,1734625858669,-205.31655402,0.00024988,2]
[346017938,1734625858679,-205.31655402,0.00024988,2]
[346017939,1734625858688,-205.5,0.0002499,120]
[346017940,1734625858698,-150.0,0.00024998,2]
[346017941,1734625858707,-133893.14602945,0.00024998,4]
[346017942,1734625858919,-7807.65251975,0.00024998,4]
[346017943,1734625858931,-50000.11973999,0.00024998,4]
[346017944,1734625858942,-27318.72952599,0.00024998,4]
[346017945,1734625858954,-4311.534494,0.00024998,4]
[346017946,1734625858966,-510.00939672,0.00024998,4]
[346017947,1734625858986,-500.0,0.00024547,4]
[346017948,1734625858996,-162.71571543,0.000249,2]
[346017949,1734625859005,-25138.89544149,0.00024998,4]
[346017957,1734626134170,170.69,0.00010137,2]
[346017969,1734627031775,-605.43,0.00021387,2]
[346017970,1734627031785,-822.87294052,0.00021516,2]
[346017971,1734627031796,-233.12705948,0.00021516,2]
[346017972,1734627031805,-62.32108236,0.00022488,4]
[346017973,1734627031831,-87.67891764,0.00022488,4]
[346017974,1734627031841,-150.0,0.00022488,4]
[346017975,1734627031850,-203.14,0.00022887,2]
[346017976,1734627031859,-202.88,0.00022887,2]
[346017977,1734627031869,-203.52,0.00022887,2]
[346017978,1734627031878,-203.41,0.00022887,2]
[346017979,1734627031888,-202.23,0.00022887,2]
[346017980,1734627031897,-201.28,0.00022887,2]
[346017981,1734627031906,-201.22,0.00022887,2]
[346017982,1734627031916,-836.83,0.000229,2]
[346017983,1734627031925,-235.22365741,0.00023037,2]
[346017984,1734627031934,-1000.0,0.00023154,2]
[346017985,1734627031943,-956.85174132,0.00023174,2]
[346017986,1734627031955,-43.14825868,0.00023174,2]
[346017987,1734627031967,-153.39,0.00023274,2]
[346017988,1734627031977,-150.0,0.00023342,2]
[346017989,1734627031986,-132.23890667,0.00023349,2]
[346017990,1734627031997,-867.76109333,0.00023349,2]
[346017991,1734627032008,-185.24,0.0002341,2]
[346017992,1734627032017,-1000.0,0.0002341,2]
[346017993,1734627032027,-333.4,0.0002341,2]
[346017994,1734627032039,-188.13,0.0002341,2]
[346017995,1734627032049,-2008.0,0.00023426,2]
[346017996,1734627032059,-564.0,0.00023426,2]
[346017997,1734627032069,-1897.0,0.00023426,2]
[346017998,1734627032079,-1254.0,0.00023426,2]
[346017999,1734627032089,-3766.0,0.00023426,2]
[346018000,1734627032099,-928.0,0.00023426,2]
[346018001,1734627032108,-817.0,0.00023426,2]
[346018002,1734627032118,-535.0,0.00023426,2]
[346018003,1734627032128,-3632.0,0.00023426,2]
[346018004,1734627032137,-150.0,0.00023426,2]
[346018005,1734627032147,-3882.0,0.00023426,2]
[346018006,1734627032156,-3110.032,0.00023426,2]
[346018007,1734627032166,-1169.0,0.00023426,2]
[346018008,1734627032176,-4018.52,0.00023443,2]
[346018009,1734627032186,-197.75,0.00023493,2]
[346018010,1734627032196,-157.6,0.00023524,30]